bitfinex/quotes_ETHUSD_20250511
["timestamp","ask_amount","ask_price","bid_price","bid_amount"]
[1746936258197,3.94217575,2536.7,2535.7,8.0]
[1746936258198,0.8268,2536.2,2535.7,8.0]
[1746936260911,0.8760833,2536.7,2535.7,8.823]
[1746936261234,0.8268,2536.7,2535.7,8.823]
[1746936261533,0.8268,2536.7,2535.8,1.41]
[1746936264141,0.8268,2536.7,2535.9,0.8075]
[1746936265807,0.8268,2536.7,2536.0,2.637]
[1746936267702,0.8268,2536.7,2536.1,8.0]
[1746936267907,0.8268,2536.7,2536.3,8.0]
[1746936268109,0.8268,2536.7,2536.4,1.0639]
[1746936268707,0.7897,2537.1,2536.4,1.0639]
[1746936270311,0.7897,2537.1,2536.5,2.636]
[1746936271330,2.639,2537.6,2535.8,2.2175]
[1746936271331,0.04927245,2537.0,2535.8,2.2175]
[1746936271650,0.7897,2536.9,2536.1,8.0]
[1746936271852,0.7986,2536.7,2536.1,8.0]
[1746936273015,0.04927712,2537.2,2536.1,8.0]
[1746936273349,0.7986,2537.1,2536.2,0.8188]
[1746936273857,0.7986,2537.1,2536.1,8.0]
[1746936274071,0.7986,2537.1,2536.3,2.639]
[1746936274214,0.7986,2536.9,2536.3,2.639]
[1746936280521,0.7986,2536.9,2535.9,0.8188]
[1746936280716,0.04927553,2536.8,2536.0,5.274]
[1746936281015,0.8302,2536.7,2536.0,5.274]
[1746936281232,0.8302,2536.7,2536.0,5.8014]
[1746936283656,0.8302,2536.7,2535.8,5.268]
[1746936284023,0.8302,2536.7,2535.9,2.634]
[1746936284220,0.8302,2536.7,2536.0,8.0]
[1746936287447,0.8302,2536.7,2536.1,0.7595]
[1746936295149,0.8302,2536.7,2536.0,8.0]
[1746936295336,0.8302,2536.7,2536.1,1.13987]
[1746936295871,0.8302,2536.7,2536.2,2.634]
[1746936296372,0.8137,2537.1,2536.3,8.0]
[1746936296545,0.8137,2537.1,2536.3,8.8011]
[1746936296752,0.8137,2537.1,2536.3,8.0]
[1746936296952,0.8137,2537.1,2536.4,1.0634]
[1746936297150,0.8137,2537.1,2536.6,8.0]
[1746936302501,0.8137,2537.1,2536.8,8.0]
[1746936304458,0.8131,2537.4,2536.8,8.0]
[1746936304691,0.8131,2537.4,2536.8,9.17258702]
[1746936308263,0.8286,2537.7,2536.9,0.7594]
[1746936308816,0.8286,2538.2,2536.9,0.7594]
[1746936309106,0.8286,2538.2,2537.1,0.7594]
[1746936309402,0.8286,2538.2,2537.3,8.0]
[1746936309579,0.8286,2538.2,2537.4,2.634]
[1746936310768,0.8286,2538.2,2537.5,8.0]
[1746936310969,0.04925302,2538.1,2537.5,8.0]
[1746936311191,0.8286,2538.0,2537.5,8.0]
[1746936311480,0.04925552,2537.9,2537.4,2.634]
[1746936311675,0.8286,2537.8,2537.2,0.87594]
[1746936311876,0.04925517,2537.7,2537.2,2.634]
[1746936312089,0.8286,2537.6,2537.3,8.0]
[1746936312981,0.8286,2538.5,2537.3,8.0]
[1746936313182,0.87784966,2538.4,2537.3,8.0]
[1746936313387,0.87784966,2538.4,2537.4,1.0634]
[1746936313577,0.8286,2538.4,2537.5,0.7594]
[1746936313883,0.8286,2538.4,2537.4,1.0634]
[1746936314520,0.8286,2538.2,2537.4,1.0634]
[1746936324886,0.7751,2538.0,2536.9,14.182]
[1746936325205,0.7751,2537.7,2537.0,2.628]
[1746936325375,0.7751,2537.5,2537.0,2.628]
[1746936326218,4.49053357,2537.8,2537.0,2.628]
[1746936326219,0.7751,2537.3,2537.0,2.628]
[1746936327840,0.7751,2537.3,2536.0,2.628]
[1746936327841,0.7654,2536.8,2536.0,2.628]
[1746936328005,0.7654,2536.6,2536.0,2.628]
[1746936328708,0.7654,2536.6,2536.1,8.0]
[1746936328892,0.7654,2536.6,2536.1,9.3254]
[1746936329697,0.7654,2536.3,2535.4,2.628]
[1746936329899,0.7654,2536.0,2534.7,5.0]
[1746936330213,0.7654,2535.7,2534.7,2.625]
[1746936330388,0.7654,2535.5,2534.7,2.625]
[1746936330590,0.04930335,2535.4,2534.8,0.5253]
[1746936330903,0.81470335,2535.4,2534.8,0.5253]
[1746936331106,0.81470335,2535.4,2534.6,8.0]
[1746936331300,0.81470335,2535.4,2534.5,2.629]
[1746936331719,0.81470335,2535.4,2534.6,8.0]
[1746936331913,0.22189682,2535.3,2534.6,8.0]
[1746936332227,0.7551,2535.2,2534.6,8.0]
[1746936332446,1.02622657,2535.2,2534.7,1.0629]
[1746936332746,1.02622657,2535.2,2534.3,0.29251252]
[1746936332747,7.17292721,2535.1,2533.6,5.85]
[1746936332904,0.7551,2534.8,2533.6,0.30046219]
[1746936333100,0.7551,2534.6,2533.5,2.625]
[1746936333343,0.04932212,2534.5,2533.5,2.625]
[1746936333540,0.26893199,2534.5,2533.6,0.2625]
[1746936333738,0.7551,2534.4,2533.6,0.2625]
[1746936333913,0.04932623,2534.3,2533.6,2.626]
[1746936334119,0.26708405,2534.3,2533.6,2.626]
[1746936334315,0.21775782,2534.3,2533.6,2.626]
[1746936335230,0.26708405,2534.3,2533.6,2.626]
[1746936336136,0.04932623,2534.3,2533.6,2.626]
[1746936336332,0.21711849,2534.2,2533.7,0.2626]
[1746936336632,0.7551,2534.4,2533.7,0.2626]
[1746936336839,0.21736037,2534.3,2533.7,0.2626]
[1746936337423,0.7551,2534.4,2533.8,8.0]
[1746936338652,0.7792,2534.2,2533.8,8.0]
[1746936338845,0.17686582,2534.1,2533.8,8.0]
[1746936339033,0.7792,2534.2,2533.8,8.0]
[1746936339346,0.17686582,2534.1,2533.8,8.0]
[1746936339548,0.17686582,2534.1,2533.7,2.8926]
[1746936339736,0.7792,2534.2,2533.7,2.8926]
[1746936340047,0.17699893,2534.1,2533.7,2.8926]
[1746936340848,0.17699893,2534.1,2533.8,8.0]
[1746936341053,0.7792,2534.0,2533.7,2.63]
[1746936341258,0.7792,2533.8,2533.3,2.626]
[1746936341439,0.7792,2533.6,2532.0,5.85]
[1746936341661,0.7792,2532.9,2532.1,0.60558822]
[1746936341860,0.22261937,2532.8,2531.9,0.29388041]
[1746936342180,0.1732609,2532.8,2532.1,8.0]
[1746936342538,0.1732609,2532.8,2532.0,2.631]
[1746936342884,0.22261326,2532.8,2532.1,8.0]
[1746936343063,0.8005,2532.7,2532.1,8.0]
[1746936343234,0.17184426,2532.6,2532.1,8.0]
[1746936343440,0.8005,2532.7,2532.1,8.0]
[1746936343689,0.8005,2532.5,2531.5,2.627]
[1746936343841,0.8005,2532.3,2531.4,2.627]
[1746936344039,0.21962155,2532.2,2531.5,8.0]
[1746936344240,0.8005,2532.1,2531.5,8.0]
[1746936344459,0.8005,2532.1,2531.4,2.627]
[1746936344665,0.8005,2532.1,2531.4,3.1524]
[1746936344863,0.8005,2532.1,2531.5,8.0]
[1746936345067,0.8005,2532.1,2531.4,3.1524]
[1746936345773,0.8005,2532.1,2531.5,8.0]
[1746936347261,0.8028,2532.5,2531.6,0.783]
[1746936347462,0.8028,2532.5,2531.7,8.8783]
[1746936347684,0.8028,2532.8,2531.8,0.55]
[1746936347973,0.8028,2533.9,2532.1,0.55]
[1746936348179,0.04934324,2533.8,2532.3,0.55]
[1746936348379,0.22207821,2533.8,2532.3,0.55]
[1746936348551,0.82971498,2533.8,2532.5,0.783]
[1746936348888,0.8028,2533.9,2532.7,8.0]
[1746936349088,0.15893707,2533.8,2532.9,8.0]
[1746936350851,0.8028,2533.9,2533.1,8.0]
[1746936351271,0.15893707,2533.8,2533.1,8.0]
[1746936351892,0.8157,2533.7,2532.8,2.628]
[1746936352077,0.86504275,2533.6,2532.8,2.628]
[1746936352263,0.8157,2533.4,2532.8,2.628]
[1746936352462,0.20665812,2533.3,2532.8,2.628]
[1746936353959,0.8157,2533.2,2532.8,2.628]
[1746936354373,0.15856155,2533.1,2532.8,2.628]
[1746936354895,0.15856155,2533.1,2532.9,8.0]
[1746936355129,0.8157,2533.2,2532.9,9.0628]
[1746936355484,0.8157,2533.2,2533.0,2.627]
[1746936355791,0.8157,2533.7,2533.0,2.627]
[1746936356479,0.8157,2533.7,2533.1,8.0]
[1746936356988,0.8157,2533.7,2533.1,2.626]
[1746936357506,0.15975697,2533.6,2533.1,2.626]
[1746936357667,0.8157,2533.7,2533.1,3.5861729]
[1746936358073,0.8157,2534.2,2533.1,3.5861729]
[1746936358274,0.1616624,2534.1,2533.2,8.0]
[1746936358487,0.1616624,2534.1,2533.2,13.85]
[1746936358674,0.8157,2534.2,2533.2,13.85]
[1746936358888,0.8157,2534.2,2533.3,1.0754]
[1746936359084,0.8157,2534.2,2533.5,8.0]
[1746936360229,0.8157,2534.5,2533.6,0.7905]
[1746936360517,0.8157,2534.5,2533.8,8.0]
[1746936361913,0.16262479,2534.4,2533.9,2.626]
[1746936362121,0.16262479,2534.4,2534.1,8.0]
[1746936362617,0.8157,2534.5,2534.1,8.0]
[1746936363186,0.16262479,2534.4,2534.1,8.0]
[1746936363421,0.8157,2534.5,2534.1,8.0]
[1746936365488,0.16262479,2534.4,2534.1,8.0]
[1746936365924,0.04932339,2534.4,2534.1,8.0]
[1746936366298,0.16238293,2534.3,2534.1,8.0]
[1746936367065,0.7533,2534.2,2533.7,2.627]
[1746936367353,0.7533,2534.0,2533.3,5.252]
[1746936367504,0.04933485,2533.9,2533.4,8.0]
[1746936367706,0.16251966,2533.8,2533.4,8.0]
[1746936367931,0.04933485,2533.9,2533.4,8.0]
[1746936368446,0.16251966,2533.8,2533.4,8.0]
[1746936368616,0.7533,2533.7,2533.3,2.627]
[1746936368967,0.21137397,2533.6,2533.3,2.627]
[1746936369166,0.21137397,2533.6,2532.8,2.627]
[1746936369352,0.21137397,2533.6,2532.9,8.0]
[1746936369353,0.7533,2533.5,2532.9,8.0]
[1746936369536,0.16155168,2533.4,2532.9,8.0]
[1746936370577,0.21089471,2533.4,2532.9,8.0]
[1746936371240,0.16155168,2533.4,2532.9,9.3252]
[1746936371759,0.7533,2533.5,2532.9,9.3252]
[1746936372202,0.16082668,2533.4,2532.9,9.3252]
[1746936373264,0.16082668,2533.4,2532.9,8.0]
[1746936373418,0.21016951,2533.4,2532.9,8.0]
[1746936374259,0.16082668,2533.4,2532.9,8.0]
[1746936375117,0.16082668,2533.4,2532.8,5.252]
[1746936375118,0.7762,2533.3,2532.4,5.85]
[1746936375310,0.04934681,2533.2,2532.5,13.25]
[1746936375510,0.15956767,2533.1,2532.5,15.16]
[1746936375714,0.04934681,2533.2,2532.5,15.11]
[1746936376143,0.15956767,2533.1,2532.5,15.11]
[1746936376349,0.15956767,2533.1,2532.5,13.2]
[1746936376877,0.04934843,2533.2,2532.5,10.575]
[1746936377053,0.8297,2533.1,2532.6,2.625]
[1746936377249,0.8297,2533.1,2532.0,5.85]
[1746936377457,0.8297,2532.9,2532.2,2.625]
[1746936377771,0.1588413,2532.8,2532.3,8.0]
[1746936377974,0.8297,2532.7,2532.2,2.625]
[1746936378477,0.15628524,2532.6,2532.2,2.625]
[1746936378665,0.8297,2532.7,2532.2,2.625]
[1746936378976,0.15628524,2532.6,2532.3,8.0]
[1746936379371,0.04935838,2532.6,2532.2,2.625]
[1746936379690,0.04935838,2532.6,2531.1,0.55]
[1746936379691,0.98574304,2532.5,2531.7,2.625]
[1746936379896,0.8297,2532.3,2531.0,5.25]
[1746936380099,0.04937143,2532.2,2531.1,8.0]
[1746936380279,0.8297,2532.1,2531.0,6.68990597]
[1746936380698,0.15412101,2532.0,2531.1,8.0]
[1746936381087,0.8297,2532.1,2531.2,0.7717]
[1746936381263,0.8297,2532.1,2531.3,0.87717]
[1746936381599,0.8297,2532.1,2531.5,8.0]
[1746936382508,0.55,2531.8,2529.7,5.85]
[1746936382665,1.3105,2531.6,2529.8,0.28952787]
[1746936382862,1.3105,2531.6,2529.7,6.6041]
[1746936382863,0.7605,2531.4,2530.3,2.625]
[1746936383210,0.7605,2531.2,2530.4,3.0625]
[1746936383502,0.7605,2531.0,2530.4,2.78409091]
[1746936383804,0.7605,2530.8,2530.4,2.78409091]
[1746936384097,0.7605,2530.8,2530.5,8.0]
[1746936384308,0.14911727,2530.7,2530.4,2.78409091]
[1746936384514,0.7605,2530.8,2530.4,3.0625]
[1746936384813,0.14852418,2530.7,2530.5,8.0]
[1746936385215,0.7605,2530.8,2530.5,8.0]
[1746936385921,0.7605,2530.8,2530.4,2.78409091]
[1746936386081,0.14839071,2530.7,2530.4,2.78409091]
[1746936386276,0.7605,2530.8,2530.4,2.73409091]
[1746936386517,0.14510121,2530.7,2530.4,2.73409091]
[1746936386723,0.7605,2530.8,2530.4,2.73409091]
[1746936386922,0.14517536,2530.7,2530.4,2.73409091]
[1746936387099,0.7605,2530.8,2530.5,8.0]
[1746936387298,0.14517536,2530.7,2530.5,8.0]
[1746936387611,0.7605,2530.8,2530.5,8.0]
[1746936387994,0.14498256,2530.7,2530.5,8.0]
[1746936388399,0.7605,2530.8,2530.5,8.0]
[1746936390804,0.14511604,2530.7,2530.5,8.0]
[1746936391013,0.7605,2530.8,2530.5,8.0]
[1746936391221,0.7605,2530.8,2530.4,2.73409091]
[1746936391420,0.8138,2530.6,2530.4,2.73409091]
[1746936391814,0.1446309,2530.5,2530.4,2.73409091]
[1746936392002,1.55783087,2530.5,2530.4,2.73409091]
[1746936392203,1.55877297,2530.5,2530.4,2.73409091]
[1746936392464,0.9584309,2530.5,2530.4,2.73409091]
[1746936394748,0.8138,2530.5,2530.4,2.73409091]
[1746936394933,0.95630975,2530.5,2530.4,2.73409091]
[1746936395308,0.14250975,2530.5,2530.4,2.73409091]
[1746936395549,0.8138,2530.8,2530.4,2.73409091]
[1746936396328,0.8138,2530.8,2530.4,3.0075]
[1746936396906,0.8138,2530.8,2530.4,2.73409091]
[1746936398756,0.795,2531.1,2530.4,2.73409091]
[1746936398956,0.13342588,2531.0,2530.4,2.73409091]
[1746936400862,0.13342588,2531.0,2530.5,8.0]
[1746936401056,0.795,2530.9,2530.5,8.0]
[1746936401416,0.13295568,2530.8,2530.5,8.0]
[1746936402930,0.13295568,2530.8,2530.4,2.73409091]
[1746936403123,0.7678,2530.7,2530.4,2.73409091]
[1746936403326,0.18186755,2530.6,2530.4,2.73409091]
[1746936403642,0.04939697,2530.6,2530.4,2.73409091]
[1746936403847,0.7678,2531.0,2530.4,2.73409091]
[1746936404046,0.1313496,2530.5,2530.4,2.73409091]
[1746936404231,0.04939268,2530.9,2530.4,2.73409091]
[1746936404438,0.7678,2531.0,2530.5,8.0]
[1746936404759,0.13231981,2530.9,2530.5,8.0]
[1746936406365,0.13231981,2530.9,2530.5,11.78149909]
[1746936406725,0.7678,2531.3,2530.5,11.78149909]
[1746936406934,0.13346257,2531.2,2530.6,0.8209]
[1746936407131,0.04937911,2531.7,2530.6,0.8209]
[1746936407363,0.13443224,2531.6,2530.6,0.8209]
[1746936407563,0.13443224,2531.6,2530.8,0.8209]
[1746936407946,0.7678,2532.2,2531.0,8.0]
[1746936408269,0.7678,2532.2,2531.2,8.0]
[1746936408581,0.13595532,2532.1,2531.2,8.0]
[1746936409079,0.13595532,2532.1,2531.1,8.8209]
[1746936409246,0.13595532,2532.1,2531.2,1.0109339]
[1746936409574,0.13571303,2532.0,2531.2,1.0109339]
[1746936410076,0.7678,2532.2,2531.3,8.0]
[1746936410239,0.12808248,2531.9,2531.3,8.0]
[1746936410435,0.7678,2532.2,2531.3,8.0]
[1746936410637,0.7678,2532.5,2531.4,1.97639909]
[1746936410851,0.12862653,2532.1,2531.6,8.0]
[1746936411141,0.12838424,2532.0,2531.7,0.8209]
[1746936411335,0.7678,2532.8,2531.9,8.0]
[1746936411540,0.8124,2533.1,2531.9,14.6372]
[1746936411788,0.8124,2533.1,2532.1,0.7872]
[1746936411977,0.8124,2533.1,2532.3,8.0]
[1746936412143,0.10184779,2533.0,2532.3,8.0]
[1746936412790,0.8124,2533.1,2532.3,8.0]
[1746936412953,0.04934888,2533.5,2532.3,8.0]
[1746936413159,0.91521608,2533.4,2532.4,1.0109339]
[1746936413357,0.8124,2533.4,2532.4,1.0109339]
[1746936413554,0.1030667,2533.3,2532.4,1.0109339]
[1746936414042,0.15241171,2533.3,2532.6,8.0]
[1746936414381,0.1030667,2533.3,2532.7,0.7872]
[1746936414581,0.1030667,2533.3,2532.7,1.92852]
[1746936415141,0.8,2533.7,2532.9,8.0]
[1746936415557,0.8,2534.0,2532.9,8.0]
[1746936415867,0.14620791,2533.9,2532.9,8.0]
[1746936416598,0.14620791,2533.9,2533.0,0.7797]
[1746936416798,0.14620791,2533.9,2533.2,8.0]
[1746936417005,0.0968727,2533.9,2533.2,8.0]
[1746936419614,0.14620585,2533.9,2533.2,8.0]
[1746936420687,0.0968727,2533.9,2533.2,8.0]
[1746936420894,0.0968727,2533.9,2533.3,0.7797]
[1746936421099,0.42694501,2535.0,2533.6,0.7797]
[1746936421100,0.8165,2534.7,2533.6,0.7797]
[1746936421413,0.14878224,2534.6,2533.6,0.7797]
[1746936421590,0.7805,2534.5,2533.6,0.7797]
[1746936421801,0.04932573,2534.4,2533.6,0.7797]
[1746936422104,0.09899232,2534.4,2533.7,2.624]
[1746936422716,0.82982573,2534.3,2533.2,6.6385]
[1746936422922,3.94653012,2533.9,2532.9,3.4125]
[1746936423138,1.32203394,2533.8,2532.9,3.4125]
[1746936423616,0.92738093,2533.8,2532.9,3.4125]
[1746936423776,1.3305,2533.7,2532.9,2.624]
[1746936423983,0.04934525,2533.6,2532.9,2.624]
[1746936424183,0.1464022,2533.6,2532.9,2.624]
[1746936424597,0.7805,2533.4,2532.9,2.624]
[1746936425138,0.14567781,2533.3,2532.9,2.624]
[1746936425703,0.09633087,2533.3,2532.9,2.624]
[1746936426208,0.1456745,2533.3,2532.9,2.624]
[1746936427753,0.09633087,2533.3,2532.9,2.624]
[1746936427899,0.14567605,2533.3,2532.9,2.624]
[1746936428724,0.09633087,2533.3,2532.9,2.624]
[1746936429934,0.04934712,2533.2,2532.9,2.624]
[1746936430136,0.7561,2533.0,2532.2,8.7727]
[1746936430457,0.1457458,2532.9,2532.3,2.623]
[1746936430878,0.04935262,2533.2,2532.3,4.0316974]
[1746936431462,0.09663857,2533.1,2532.3,4.0316974]
[1746936431624,0.09663857,2533.1,2532.4,8.8178]
[1746936431819,0.7561,2533.3,2532.4,8.8178]
[1746936432334,0.09688065,2533.2,2532.4,8.8178]
[1746936432532,0.7561,2533.3,2532.5,1.28494974]
[1746936432736,0.09688065,2533.2,2532.5,1.28494974]
[1746936432936,0.86774716,2533.5,2532.5,1.28494974]
[1746936433178,0.09736476,2533.4,2532.5,1.28494974]
[1746936434243,0.8184,2533.3,2532.2,0.8178]
[1746936434458,0.86774537,2533.3,2532.4,8.0]
[1746936434647,0.09688065,2533.2,2532.4,8.0]
[1746936435065,0.09688065,2533.2,2532.5,0.8178]
[1746936435441,0.04934042,2533.6,2532.5,0.8178]
[1746936435742,0.04934042,2533.6,2532.5,1.96188]
[1746936436776,0.09766645,2533.5,2532.5,1.96188]
[1746936437280,0.8677409,2533.4,2532.1,8.88507401]
[1746936437481,3.99672554,2533.4,2532.3,2.623]
[1746936437780,0.55,2533.1,2532.3,8.0]
[1746936437990,0.14581184,2533.0,2532.3,2.623]
[1746936438351,0.8184,2532.9,2532.3,2.623]
[1746936438660,0.09597187,2532.8,2532.4,8.0]
[1746936438860,0.09597187,2532.8,2532.3,2.623]
[1746936439047,0.0493557,2532.8,2532.3,2.623]
[1746936439253,0.8184,2532.6,2532.2,2.623]
[1746936439454,0.04936077,2532.5,2532.2,2.623]
[1746936439693,0.09524533,2532.5,2532.2,2.623]
[1746936440887,0.14460507,2532.5,2532.2,2.623]
[1746936441989,0.14460507,2532.5,2531.9,8.0]
[1746936443088,0.09524533,2532.5,2531.9,8.0]
[1746936443391,0.09524533,2532.5,2531.9,10.7452]
[1746936444794,0.7887,2533.0,2532.0,0.7982]
[1746936445498,0.04935953,2533.6,2532.0,0.7982]
[1746936445499,0.7887,2533.5,2532.1,0.7982]
[1746936445796,0.04934489,2533.4,2532.1,0.7982]
[1746936445995,0.09002963,2533.4,2532.3,0.7982]
[1746936446201,0.09002963,2533.4,2532.4,5.248]
[1746936446365,0.09002963,2533.4,2532.5,0.8021]
[1746936447312,0.09002963,2533.4,2532.6,5.85]
[1746936447611,0.7887,2533.5,2532.6,5.85]
[1746936447813,0.7887,2533.5,2532.7,0.66521]
[1746936447986,0.0902833,2533.4,2532.7,0.66521]
[1746936448163,0.7887,2533.5,2532.8,0.8021]
[1746936448585,0.09044744,2533.4,2532.8,0.8021]
[1746936449162,0.752,2533.8,2532.8,0.8021]
[1746936449363,0.09117346,2533.7,2532.9,0.946731]
[1746936449572,0.09117346,2533.7,2533.1,8.0]
[1746936450686,0.09117346,2533.7,2533.2,0.8021]
[1746936450890,0.04932719,2534.8,2533.5,0.8021]
[1746936451107,2.6087219,2535.7,2533.5,0.8021]
[1746936451108,0.752,2535.0,2533.8,0.8021]
[1746936451274,0.752,2535.0,2534.0,0.8021]
[1746936452687,0.8304,2535.3,2534.0,0.8021]
[1746936453101,0.8304,2535.3,2533.9,0.88021]
[1746936453102,0.08768325,2535.2,2534.2,0.7922]
[1746936453422,0.8304,2535.3,2534.3,13.246]
[1746936453875,0.08768325,2535.2,2534.3,13.246]
[1746936454077,0.08768325,2535.2,2534.4,0.9345219]
[1746936454473,0.8304,2535.1,2534.3,13.246]
[1746936455013,0.08949635,2535.0,2534.3,13.246]
[1746936456313,0.8304,2534.9,2534.3,8.0]
[1746936456478,0.04931608,2534.8,2534.3,8.0]
[1746936456675,0.7654,2534.7,2534.3,8.0]
[1746936456893,0.04932005,2534.6,2534.2,5.245]
[1746936457213,0.7654,2534.5,2534.3,8.0]
[1746936457912,0.08786678,2534.4,2534.2,5.245]
[1746936458278,0.7654,2534.5,2534.2,5.245]
[1746936458673,0.08786678,2534.4,2534.2,5.245]
[1746936459110,0.7654,2534.3,2533.6,2.622]
[1746936459318,0.7654,2534.3,2533.7,8.0]
[1746936461721,0.7654,2534.3,2533.8,2.621]
[1746936461883,0.08806963,2534.2,2533.8,8.0]
[1746936462095,0.13739719,2534.2,2533.8,8.0]
[1746936462289,0.04932756,2534.2,2533.8,8.0]
[1746936462495,0.08802158,2534.1,2533.8,8.0]
[1746936463327,0.7654,2534.3,2533.8,8.0]
[1746936463631,0.7654,2534.3,2533.3,2.621]
[1746936463632,0.95859108,2534.2,2533.3,2.621]
[1746936463941,0.821,2534.0,2533.4,8.0]
[1746936464239,0.08753773,2533.9,2533.4,8.0]
[1746936464896,0.821,2534.0,2533.4,8.0]
[1746936465094,0.08753773,2533.9,2533.4,8.0]
[1746936465502,0.821,2533.8,2533.4,8.0]
[1746936465940,0.08656172,2533.7,2533.4,8.0]
[1746936466112,0.08656172,2533.7,2533.5,1.0621]
[1746936466316,0.821,2534.1,2533.5,1.0621]
[1746936466532,0.821,2534.1,2533.4,8.0]
[1746936466924,0.08590351,2534.0,2533.4,8.0]
[1746936467151,0.821,2534.1,2533.4,8.8178]
[1746936467831,0.821,2534.1,2533.4,8.0]
[1746936468555,0.08594825,2534.0,2533.4,8.0]
[1746936468722,0.08594825,2534.0,2533.5,1.0621]
[1746936469517,0.821,2534.1,2533.5,1.0621]
[1746936469721,0.796,2534.6,2533.5,1.0621]
[1746936470017,0.09569355,2534.5,2533.6,0.8178]
[1746936471050,0.09569355,2534.5,2533.6,8.8178]
[1746936471255,0.09569355,2534.5,2533.7,1.4178419]
[1746936471442,0.796,2534.6,2533.8,2.621]
[1746936471774,0.8329,2535.1,2534.0,8.0]
[1746936471970,0.13043375,2535.0,2534.0,8.0]
[1746936472661,0.08111785,2535.0,2534.0,8.0]
[1746936472865,0.08111785,2535.0,2534.1,0.946731]
[1746936473343,0.08111785,2535.0,2534.2,0.7642]
[1746936475665,0.8329,2535.1,2534.2,0.7642]
[1746936475979,0.8329,2535.6,2534.2,0.7642]
[1746936476167,0.08368526,2535.5,2534.4,0.7642]
[1746936476474,0.08368526,2535.5,2534.7,0.7642]
[1746936476868,0.8329,2536.0,2534.7,0.7642]
[1746936477361,0.08468151,2535.9,2535.1,0.7642]
[1746936477566,0.8329,2536.3,2535.2,13.242]
[1746936477567,0.04928623,2536.2,2535.2,13.242]
[1746936477796,0.08516459,2536.1,2535.3,1.98562]
[1746936478079,0.04929014,2536.2,2535.3,1.98562]
[1746936478377,0.08516459,2536.1,2535.3,1.98562]
[1746936478674,0.8329,2536.3,2535.3,1.98562]
[1746936478975,0.13469625,2536.2,2535.4,0.4943219]
[1746936479177,0.0854061,2536.2,2535.4,0.4943219]
[1746936481474,0.13469321,2536.2,2535.4,0.4943219]
[1746936481675,0.8329,2536.3,2535.5,0.7642]
[1746936481898,0.088568,2536.1,2535.5,0.7642]
[1746936482078,0.08880951,2536.2,2535.6,0.92585219]
[1746936482241,0.8329,2536.3,2535.5,0.7642]
[1746936482642,0.08880951,2536.2,2535.5,0.7642]
[1746936483073,0.0492826,2536.5,2535.5,0.7642]
[1746936483478,0.08929248,2536.4,2535.5,0.7642]
[1746936483843,0.8329,2536.6,2535.5,0.7642]
[1746936484084,0.089051,2536.3,2535.5,0.7642]
[1746936484289,0.09151838,2536.5,2535.7,0.7642]
[1746936484458,0.8329,2536.6,2535.9,8.0]
[1746936484653,0.09145587,2536.4,2535.9,8.0]
[1746936484875,0.8329,2536.6,2535.9,8.0]
[1746936485178,0.09169732,2536.5,2536.0,1.324]
[1746936486651,0.09169732,2536.5,2536.2,8.0]
[1746936486884,0.8329,2536.6,2536.2,8.0]
[1746936487052,0.09154534,2536.4,2536.2,8.0]
[1746936487247,0.8329,2536.6,2536.2,8.0]
[1746936487448,0.09130387,2536.3,2536.2,8.0]
[1746936487675,0.8329,2536.6,2536.2,8.89749881]
[1746936488078,0.09174206,2536.5,2536.2,8.89749881]
[1746936488460,0.09174206,2536.5,2536.2,9.64879881]
[1746936488859,0.86347911,2537.1,2536.2,9.64879881]
[1746936489262,0.09293413,2537.0,2536.2,9.64879881]
[1746936489568,0.09293413,2537.0,2536.4,0.7513]
[1746936489768,0.04927125,2537.1,2536.6,8.0]
[1746936490167,0.09305342,2537.0,2536.6,8.0]
[1746936490575,0.8142,2537.2,2536.6,8.0]
[1746936490883,0.14304501,2537.1,2536.6,8.0]
[1746936491290,0.09377182,2537.1,2536.6,9.13703]
[1746936491856,4.34575947,2538.0,2536.6,9.13703]
[1746936491857,0.08674497,2537.0,2536.9,0.7957]
[1746936492084,0.04926505,2537.7,2536.9,0.80631326]
[1746936492288,0.04926285,2538.1,2536.9,0.80631326]
[1746936492608,0.08819272,2537.6,2536.9,0.80631326]
[1746936492793,0.08819272,2537.6,2537.0,0.88063133]
[1746936493089,0.08819272,2537.6,2537.2,8.0]
[1746936493389,0.04925531,2538.5,2537.4,8.0]
[1746936493591,0.09012199,2538.4,2537.5,0.01058973]
[1746936493802,3.93994608,2538.2,2537.5,0.01058973]
[1746936494088,0.53757455,2538.1,2537.4,8.0]
[1746936494995,0.777,2538.0,2537.4,8.0]
[1746936495154,0.13817205,2537.9,2537.4,8.0]
[1746936495360,0.04925571,2537.9,2537.4,8.0]
[1746936495833,0.08867515,2537.8,2537.4,8.0]
[1746936496362,0.08867515,2537.8,2537.1,0.7957]
[1746936496593,0.08867515,2537.8,2537.2,5.236]
[1746936496594,0.7843,2537.7,2537.2,5.236]
[1746936496793,0.0492634,2537.6,2536.8,0.809]
[1746936497022,0.7843,2538.0,2536.8,5.236]
[1746936497160,0.04925978,2537.9,2536.9,1.3326]
[1746936497496,0.0896885,2537.8,2536.9,9.3326]
[1746936498466,0.0896885,2537.8,2536.9,8.5236]
[1746936498667,0.0396885,2537.8,2537.0,0.809]
[1746936498990,0.0396885,2537.8,2536.9,8.5236]
[1746936498991,0.08534022,2537.8,2537.2,0.809]
[1746936499163,0.83355132,2538.7,2537.4,0.809]
[1746936499512,0.09800736,2538.6,2537.6,8.809]